fUSD/lending_fUSD_20250108
["ID","MTS","AMOUNT","RATE_DAILY","PERIOD"]
[348112035,1736325050424,-3639.43722542,0.000105,5]
[348112039,1736325050451,-264.21431984,0.0001,2]
[348112041,1736325050463,-941.78568016,0.0001,2]
[348112043,1736325050472,-1296.48908062,0.000105,5]
[348112046,1736325050484,-548.28484342,0.000105,5]
[348112048,1736325050496,-13917.51677167,0.000105,5]
[348112050,1736325050507,-331.94839888,0.000105,5]
[348112052,1736325050519,-775.14495159,0.000105,5]
[348112055,1736325050533,-1449.07818022,0.000105,5]
[348112057,1736325050546,-5745.85818198,0.000105,5]
[348112059,1736325050557,-7649.27914543,0.000105,5]
[348112258,1736326202062,399.0,0.0002,120]
[348112268,1736326231908,-820.51,8.219e-05,2]
[348112269,1736326231918,-9623.61,9.1e-05,2]
[348112270,1736326231928,-1000.0,9.105e-05,2]
[348112271,1736326231937,-218.08,9.157e-05,2]
[348112272,1736326231948,-250.0,9.341e-05,2]
[348112273,1736326231957,-235.94,9.369e-05,2]
[348112274,1736326231966,-150.0,9.444e-05,2]
[348112275,1736326231976,-150.0,9.444e-05,2]
[348112276,1736326231988,-300.0,9.618e-05,2]
[348112277,1736326231997,-175.71,9.675e-05,2]
[348112278,1736326232006,-150.0,9.863e-05,2]
[348112279,1736326232018,-2500.0,9.897e-05,2]
[348112280,1736326232029,-150.0,9.968e-05,2]
[348112281,1736326232038,-154.906,9.97e-05,2]
[348112282,1736326232049,-150.0,9.995e-05,2]
[348112283,1736326232059,-299.99,9.996e-05,2]
[348112284,1736326232068,-150.99,9.996e-05,2]
[348112285,1736326232078,-500.0,9.996e-05,2]
[348112286,1736326232088,-500.0,9.996e-05,2]
[348112287,1736326232097,-503.3624657,9.996e-05,2]
[348112288,1736326232107,-500.0,9.996e-05,2]
[348112289,1736326232117,-503.15178027,9.996e-05,2]
[348112290,1736326232126,-500.0,9.996e-05,2]
[348112291,1736326232136,-500.0,9.996e-05,2]
[348112293,1736326232145,-500.0,9.996e-05,2]
[348112294,1736326232154,-500.0,9.996e-05,2]
[348112295,1736326232164,-500.0,9.996e-05,2]
[348112296,1736326232173,-500.92750162,9.996e-05,2]
[348112297,1736326232182,-502.2731286,9.996e-05,2]
[348112298,1736326232191,-504.99007758,9.996e-05,2]
[348112299,1736326232201,-503.06829921,9.996e-05,2]
[348112300,1736326232210,-500.0,9.996e-05,2]
[348112301,1736326232219,-500.0,9.996e-05,2]
[348112302,1736326232229,-500.0,9.996e-05,2]
[348112303,1736326232238,-160.49824153,9.996e-05,2]
[348112304,1736326232248,-500.0,9.996e-05,2]
[348112305,1736326232257,-501.19718751,9.996e-05,2]
[348112306,1736326232267,-501.93847069,9.996e-05,2]
[348112307,1736326232276,-1269.94,9.996e-05,2]
[348112308,1736326232285,-500.0,9.996e-05,2]
[348112309,1736326232295,-186.18827744,9.996e-05,2]
[348112310,1736326232304,-175.99131654,9.996e-05,2]
[348112311,1736326232314,-500.0,9.996e-05,2]
[348112312,1736326232324,-504.4340185,9.996e-05,2]
[348112313,1736326232333,-3376.95,9.996e-05,2]
[348112314,1736326232342,-500.0,9.996e-05,2]
[348112315,1736326232352,-500.0,9.996e-05,2]
[348112316,1736326232362,-501.11972428,9.996e-05,2]
[348112317,1736326232371,-510.34220156,9.996e-05,2]
[348112318,1736326232381,-612.42,9.996e-05,2]
[348112319,1736326232390,-228.35171238,9.996e-05,2]
[348112320,1736326232399,-500.0,9.996e-05,2]
[348112321,1736326232409,-500.0,9.996e-05,2]
[348112322,1736326232418,-826.82,9.996e-05,2]
[348112323,1736326232427,-500.0,9.996e-05,2]
[348112324,1736326232437,-500.0,9.996e-05,2]
[348112325,1736326232447,-1236.18,9.996e-05,2]
[348112326,1736326232456,-183.42726381,9.996e-05,2]
[348112328,1736326232466,-500.0,9.996e-05,2]
[348112330,1736326232475,-500.0,9.996e-05,2]
[348112331,1736326232485,-500.0,9.996e-05,2]
[348112332,1736326232495,-2528.74,9.996e-05,2]
[348112333,1736326232504,-500.0,9.996e-05,2]
[348112334,1736326232514,-508.55,9.996e-05,2]
[348112336,1736326232528,-701.35,9.996e-05,2]
[348112338,1736326232537,-270.76930856,9.996e-05,2]
[348112340,1736326232546,-500.0,9.996e-05,2]
[348112342,1736326232557,-500.0,9.996e-05,2]
[348112344,1736326232566,-500.0,9.996e-05,2]
[348112346,1736326232575,-500.0,9.996e-05,2]
[348112349,1736326232585,-717.57,9.996e-05,2]
[348112352,1736326232595,-500.0,9.996e-05,2]
[348112354,1736326232605,-500.0,9.996e-05,2]
[348112357,1736326232615,-500.0,9.996e-05,2]
[348112361,1736326232625,-500.0,9.996e-05,2]
[348112363,1736326232634,-1485.16,9.996e-05,2]
[348112367,1736326232644,-500.0,9.996e-05,2]
[348112371,1736326232655,-500.0,9.996e-05,2]
[348112374,1736326232664,-500.0,9.996e-05,2]
[348112377,1736326232674,-723.58,9.996e-05,2]
[348112380,1736326232684,-1034.02,9.996e-05,2]
[348112383,1736326232698,-500.0,9.996e-05,2]
[348112386,1736326232708,-500.0,9.996e-05,2]
[348112389,1736326232718,-1286.39,9.996e-05,2]
[348112392,1736326232727,-501.95048912,9.996e-05,2]
[348112395,1736326232738,-500.0,9.996e-05,2]
[348112398,1736326232747,-500.0,9.996e-05,2]
[348112401,1736326232757,-506.94750644,9.996e-05,2]
[348112404,1736326232766,-500.0,9.996e-05,2]
[348112407,1736326232776,-500.0,9.996e-05,2]
[348112409,1736326232786,-500.0,9.996e-05,2]
[348112413,1736326232796,-527.54,9.996e-05,2]
[348112416,1736326232805,-501.08635958,9.996e-05,2]
[348112418,1736326232816,-420.22812554,9.996e-05,2]
[348112422,1736326232826,-500.0,9.996e-05,2]
[348112426,1736326232836,-252.2915544,9.996e-05,2]
[348112427,1736326232847,-500.0,9.996e-05,2]
[348112430,1736326232857,-500.0,9.996e-05,2]
[348112433,1736326232866,-855.03,9.996e-05,2]
[348112435,1736326232875,-500.0,9.996e-05,2]
[348112438,1736326232885,-500.95858293,9.996e-05,2]
[348112441,1736326232894,-500.0,9.996e-05,2]
[348112444,1736326232904,-599.89,9.996e-05,2]
[348112447,1736326232913,-500.0,9.996e-05,2]
[348112449,1736326232923,-1108.34,9.996e-05,2]
[348112451,1736326232932,-500.0,9.996e-05,2]
[348112453,1736326232941,-500.0,9.996e-05,2]
[348112454,1736326232950,-500.0,9.996e-05,2]
[348112457,1736326232960,-500.0,9.996e-05,2]
[348112459,1736326232970,-500.0,9.996e-05,2]
[348112461,1736326232979,-500.0,9.996e-05,2]
[348112463,1736326232989,-500.0,9.996e-05,2]
[348112465,1736326232999,-500.0,9.996e-05,2]
[348112467,1736326233009,-500.0,9.996e-05,2]
[348112469,1736326233018,-500.0,9.997e-05,2]
[348112471,1736326233027,-500.0,9.997e-05,2]
[348112473,1736326233038,-500.0,9.997e-05,2]
[348112475,1736326233048,-500.0,9.997e-05,2]
[348112477,1736326233058,-500.0,9.997e-05,2]
[348112479,1736326233068,-500.0,9.997e-05,2]
[348112481,1736326233078,-190.59285238,9.997e-05,2]
[348112483,1736326233087,-500.0,9.997e-05,2]
[348112485,1736326233097,-500.0,9.997e-05,2]
[348112487,1736326233107,-500.0,9.997e-05,2]
[348112489,1736326233117,-501.44696136,9.997e-05,2]
[348112491,1736326233127,-500.0,9.997e-05,2]
[348112493,1736326233137,-500.0,9.997e-05,2]
[348112495,1736326233149,-500.0,9.997e-05,2]
[348112497,1736326233159,-171.3543662,9.997e-05,2]
[348112499,1736326233169,-500.0,9.997e-05,2]
[348112501,1736326233179,-505.83542164,9.997e-05,2]
[348112503,1736326233190,-500.0,9.997e-05,2]
[348112505,1736326233200,-500.0,9.997e-05,2]
[348112507,1736326233211,-500.0,9.997e-05,2]
[348112509,1736326233220,-500.0,9.997e-05,2]
[348112511,1736326233230,-1165.88,9.997e-05,2]
[348112513,1736326233241,-500.0,9.997e-05,2]
[348112515,1736326233251,-500.0,9.997e-05,2]
[348112517,1736326233260,-500.0,9.997e-05,2]
[348112519,1736326233270,-500.0,9.997e-05,2]
[348112521,1736326233281,-500.0,9.997e-05,2]
[348112523,1736326233291,-492.9,9.997e-05,2]
[348112525,1736326233301,-500.0,9.997e-05,2]
[348112527,1736326233311,-500.0,9.997e-05,2]
[348112529,1736326233321,-502.33636077,9.997e-05,2]
[348112531,1736326233330,-500.0,9.997e-05,2]
[348112532,1736326233339,-202.9797631,9.997e-05,2]
[348112535,1736326233349,-501.44714135,9.997e-05,2]
[348112536,1736326233359,-500.0,9.997e-05,2]
[348112539,1736326233369,-500.1915448,9.997e-05,2]
[348112541,1736326233379,-501.73405599,9.997e-05,2]
[348112543,1736326233388,-500.0,9.997e-05,2]
[348112545,1736326233398,-500.0,9.997e-05,2]
[348112547,1736326233408,-301.01012251,9.997e-05,2]
[348112549,1736326233418,-500.0,9.997e-05,2]
[348112550,1736326233427,-500.0,9.997e-05,2]
[348112552,1736326233437,-500.0,9.997e-05,2]
[348112554,1736326233447,-500.0,9.997e-05,2]
[348112556,1736326233457,-500.0,9.997e-05,2]
[348112559,1736326233467,-500.0,9.997e-05,2]
[348112561,1736326233476,-500.0,9.997e-05,2]
[348112562,1736326233486,-450.72,9.997e-05,2]
[348112564,1736326233495,-500.0,9.997e-05,2]
[348112566,1736326233505,-500.0,9.997e-05,2]
[348112568,1736326233515,-500.0,9.997e-05,2]
[348112571,1736326233525,-499.62765415,9.997e-05,2]
[348112573,1736326233535,-500.0,9.997e-05,2]
[348112574,1736326233545,-500.0,9.997e-05,2]
[348112576,1736326233554,-500.82494524,9.997e-05,2]
[348112579,1736326233565,-500.0,9.997e-05,2]
[348112580,1736326233575,-500.0,9.997e-05,2]
[348112582,1736326233584,-500.0,9.997e-05,2]
[348112584,1736326233594,-500.0,9.997e-05,2]
[348112586,1736326233603,-500.0,9.997e-05,2]
[348112588,1736326233613,-500.0,9.997e-05,2]
[348112590,1736326233623,-500.0,9.997e-05,2]
[348112592,1736326233633,-500.0,9.997e-05,2]
[348112594,1736326233642,-500.0,9.997e-05,2]
[348112596,1736326233652,-500.0,9.997e-05,2]
[348112598,1736326233661,-500.0,9.997e-05,2]
[348112600,1736326233670,-500.0,9.997e-05,2]
[348112602,1736326233680,-500.0,9.997e-05,2]
[348112605,1736326233693,-500.0,9.997e-05,2]
[348112607,1736326233703,-500.0,9.997e-05,2]
[348112609,1736326233713,-500.0,9.997e-05,2]
[348112611,1736326233723,-500.0,9.997e-05,2]
[348112612,1736326233734,-500.0,9.997e-05,2]
[348112614,1736326233743,-500.0,9.997e-05,2]
[348112616,1736326233752,-505.56441017,9.997e-05,2]
[348112618,1736326233761,-180621.24245975,9.997e-05,2]
[348112621,1736326233778,-21335.9442092,9.997e-05,2]
[348112623,1736326233790,-1186.48681213,9.997e-05,2]
[348112626,1736326233808,-4000.0,9.997e-05,2]
[348112629,1736326233829,-919.47047595,9.997e-05,2]
[348112631,1736326233841,-520.76999999,9.997e-05,2]
[348112633,1736326233853,-263.1515195,9.997e-05,2]
[348112635,1736326233866,-321.62,9.997e-05,2]
[348112637,1736326233878,-273.78627064,9.997e-05,2]
[348112640,1736326233889,-320.94499995,9.997e-05,2]
[348112642,1736326233901,-2531.25,9.997e-05,2]
[348112644,1736326233914,-192132.30085367,9.997e-05,2]
[348112647,1736326233932,-124462.15172194,9.997e-05,2]
[348112958,1736326237688,-500.0,9.996e-05,2]
[348112959,1736326237702,-984.94,9.996e-05,2]
[348112960,1736326237712,-500.0,9.996e-05,2]
[348112961,1736326237721,-1918.288897,9.997e-05,2]
[348112962,1736326237734,-2272.18469244,9.997e-05,2]
[348112963,1736326237745,-2129.05365,9.997e-05,2]
[348112964,1736326237757,-7925.56024198,9.997e-05,2]
[348112965,1736326237769,-12073.477402,9.997e-05,2]
[348112966,1736326237791,-8781.8642812,9.997e-05,2]
[348112967,1736326237803,-795.39,9.997e-05,2]
[348112968,1736326237814,-1042.8357821,9.997e-05,2]
[348112969,1736326237826,-502.5,9.997e-05,2]
[348112970,1736326237837,-822.49017547,9.997e-05,2]
[348112971,1736326237862,-5104.097172,9.997e-05,2]
[348112972,1736326237874,-801.21304622,9.997e-05,2]
[348112979,1736326239643,-1013.16,9.997e-05,2]
[348112980,1736326239755,-9629.54759372,9.997e-05,2]
[348112981,1736326239768,-1479.95672401,9.997e-05,2]
[348112982,1736326239780,-469.97,9.997e-05,2]
[348112983,1736326239791,-517.33,9.997e-05,2]
[348112984,1736326239804,-549.605,9.997e-05,2]
[348112985,1736326239823,-20515.73562838,9.997e-05,2]
[348112986,1736326239835,-16795.2913419,9.997e-05,2]
[348112987,1736326239874,-764.75220241,9.997e-05,2]
[348112996,1736326242566,-2313.6132779,9.996e-05,2]
[348112997,1736326242627,-515.2567221,9.996e-05,2]
[348112998,1736326242637,-4507.4932779,9.997e-05,2]
[348112999,1736326242684,-2116.97344522,9.997e-05,2]
[348113000,1736326242796,-212471.27012333,9.997e-05,2]
[348113001,1736326242806,-500.0,9.997e-05,2]
[348113002,1736326242815,-500.0,9.997e-05,2]
[348113003,1736326242826,-500.0,9.997e-05,2]
[348113004,1736326242835,-500.0,9.997e-05,2]
[348113005,1736326242845,-570.33,9.997e-05,2]
[348113006,1736326242855,-500.0,9.997e-05,2]
[348113007,1736326242864,-500.0,9.997e-05,2]
[348113008,1736326242873,-500.0,9.997e-05,2]
[348113009,1736326242883,-500.0,9.997e-05,2]
[348113010,1736326242892,-500.0,9.997e-05,2]
[348113011,1736326242903,-500.0,9.997e-05,2]
[348113012,1736326242912,-500.0,9.997e-05,2]
[348113013,1736326242922,-500.0,9.997e-05,2]
[348113014,1736326242931,-500.0,9.997e-05,2]
[348113015,1736326242941,-500.0,9.997e-05,2]
[348113016,1736326242950,-500.0,9.997e-05,2]
[348113017,1736326242959,-500.0,9.997e-05,2]
[348113018,1736326242969,-500.0,9.997e-05,2]
[348113019,1736326242978,-632.80479721,9.997e-05,2]
[348113020,1736326242987,-500.0,9.997e-05,2]
[348113021,1736326242997,-500.0,9.997e-05,2]
[348113022,1736326243006,-500.0,9.997e-05,2]
[348113023,1736326243015,-500.0,9.997e-05,2]
[348113024,1736326243024,-500.0,9.997e-05,2]
[348113026,1736326243034,-500.0,9.997e-05,2]
[348113027,1736326243043,-500.0,9.997e-05,2]
[348113028,1736326243053,-500.0,9.997e-05,2]
[348113029,1736326243062,-500.0,9.997e-05,2]
[348113030,1736326243071,-500.0,9.997e-05,2]
[348113031,1736326243081,-500.0,9.997e-05,2]
[348113032,1736326243091,-500.0,9.997e-05,2]
[348113033,1736326243100,-500.0,9.997e-05,2]
[348113034,1736326243109,-500.0,9.997e-05,2]
[348113035,1736326243118,-534.75,9.997e-05,2]
[348113036,1736326243128,-500.0,9.997e-05,2]
[348113037,1736326243137,-500.0,9.997e-05,2]
[348113038,1736326243146,-500.0,9.997e-05,2]
[348113039,1736326243156,-500.0,9.997e-05,2]
[348113040,1736326243165,-500.0,9.997e-05,2]
[348113041,1736326243175,-325.9218732,9.997e-05,2]
[348113042,1736326243184,-500.0,9.997e-05,2]
[348113043,1736326243193,-500.0,9.997e-05,2]
[348113044,1736326243202,-500.0,9.997e-05,2]
[348113045,1736326243212,-500.83983256,9.997e-05,2]
[348113046,1736326243221,-500.0,9.997e-05,2]
[348113047,1736326243230,-500.0,9.997e-05,2]
[348113048,1736326243240,-500.0,9.997e-05,2]
[348113049,1736326243250,-516.55,9.997e-05,2]
[348113050,1736326243259,-500.0,9.997e-05,2]
[348113051,1736326243270,-570.42,9.997e-05,2]
[348113052,1736326243279,-500.0,9.997e-05,2]
[348113053,1736326243288,-500.0,9.997e-05,2]
[348113054,1736326243298,-500.0,9.997e-05,2]
[348113055,1736326243307,-500.0,9.997e-05,2]
[348113056,1736326243317,-500.0,9.997e-05,2]
[348113057,1736326243326,-500.0,9.997e-05,2]
[348113058,1736326243335,-500.0,9.997e-05,2]
[348113059,1736326243344,-500.0,9.997e-05,2]
[348113060,1736326243354,-500.0,9.997e-05,2]
[348113061,1736326243363,-500.0,9.997e-05,2]
[348113062,1736326243372,-500.0,9.997e-05,2]
[348113063,1736326243381,-500.0,9.997e-05,2]
[348113064,1736326243391,-500.0,9.997e-05,2]
[348113065,1736326243399,-500.0,9.997e-05,2]
[348113066,1736326243409,-500.0,9.997e-05,2]
[348113067,1736326243418,-500.0,9.997e-05,2]
[348113068,1736326243428,-500.0,9.997e-05,2]
[348113069,1736326243437,-500.0,9.997e-05,2]
[348113070,1736326243446,-500.0,9.997e-05,2]
[348113071,1736326243455,-500.0,9.997e-05,2]
[348113072,1736326243465,-500.0,9.997e-05,2]
[348113073,1736326243474,-500.0,9.997e-05,2]
[348113074,1736326243483,-655.86,9.997e-05,2]
[348113075,1736326243493,-500.0,9.997e-05,2]
[348113076,1736326243502,-634.49,9.997e-05,2]
[348113077,1736326243511,-502.28783497,9.997e-05,2]
[348113078,1736326243520,-500.0,9.997e-05,2]
[348113079,1736326243529,-605.16,9.997e-05,2]
[348113080,1736326243539,-500.0,9.997e-05,2]
[348113081,1736326243548,-500.0,9.997e-05,2]
[348113082,1736326243557,-500.0,9.997e-05,2]
[348113083,1736326243567,-500.0,9.997e-05,2]
[348113084,1736326243576,-500.0,9.997e-05,2]
[348113085,1736326243585,-500.0,9.997e-05,2]
[348113086,1736326243595,-500.0,9.997e-05,2]
[348113087,1736326243604,-553.96,9.997e-05,2]
[348113088,1736326243613,-500.0,9.997e-05,2]
[348113089,1736326243623,-500.0,9.997e-05,2]
[348113090,1736326243632,-974.42,9.998e-05,2]
[348113091,1736326243641,-500.0,9.998e-05,2]
[348113092,1736326243650,-585.54,9.998e-05,2]
[348113093,1736326243659,-500.0,9.998e-05,2]
[348113094,1736326243668,-500.0,9.998e-05,2]
[348113095,1736326243678,-500.0,9.998e-05,2]
[348113096,1736326243688,-956.14,9.998e-05,2]
[348113097,1736326243700,-500.0,9.998e-05,2]
[348113098,1736326243709,-500.0,9.998e-05,2]
[348113099,1736326243719,-500.0,9.998e-05,2]
[348113100,1736326243728,-500.0,9.998e-05,2]
[348113101,1736326243738,-500.0,9.998e-05,2]
[348113102,1736326243747,-500.0,9.998e-05,2]
[348113103,1736326243757,-500.0,9.998e-05,2]
[348113104,1736326243767,-996.33,9.998e-05,2]
[348113105,1736326243776,-500.0,9.998e-05,2]
[348113106,1736326243786,-500.0,9.998e-05,2]
[348113107,1736326243795,-500.0,9.998e-05,2]
[348113108,1736326243805,-500.0,9.998e-05,2]
[348113109,1736326243814,-500.0,9.998e-05,2]
[348113110,1736326243824,-500.0,9.998e-05,2]
[348113111,1736326243833,-500.0,9.998e-05,2]
[348113112,1736326243843,-3647.36,9.998e-05,2]
[348113113,1736326243852,-3647.36,9.998e-05,2]
[348113114,1736326243862,-500.0,9.998e-05,2]
[348113115,1736326243872,-500.0,9.998e-05,2]
[348113116,1736326243881,-500.0,9.998e-05,2]
[348113117,1736326243890,-500.0,9.998e-05,2]
[348113118,1736326243899,-500.0,9.998e-05,2]
[348113119,1736326243908,-500.0,9.998e-05,2]
[348113120,1736326243918,-500.0,9.998e-05,2]
[348113121,1736326243927,-500.0,9.998e-05,2]
[348113122,1736326243937,-500.0,9.998e-05,2]
[348113123,1736326243947,-500.0,9.998e-05,2]
[348113124,1736326243956,-500.0,9.998e-05,2]
[348113125,1736326243966,-500.0,9.998e-05,2]
[348113126,1736326243977,-500.0,9.998e-05,2]
[348113127,1736326243986,-500.0,9.998e-05,2]
[348113128,1736326243996,-219.516912,9.998e-05,2]
[348113129,1736326244005,-500.0,9.998e-05,2]
[348113130,1736326244014,-500.0,9.998e-05,2]
[348113131,1736326244023,-500.0,9.998e-05,2]
[348113132,1736326244032,-500.0,9.998e-05,2]
[348113133,1736326244043,-508.9,9.998e-05,2]
[348113134,1736326244052,-500.0,9.998e-05,2]
[348113135,1736326244061,-500.0,9.998e-05,2]
[348113136,1736326244071,-500.0,9.998e-05,2]
[348113137,1736326244080,-500.0,9.998e-05,2]
[348113138,1736326244089,-500.0,9.998e-05,2]
[348113139,1736326244098,-1657.8,9.998e-05,2]
[348113140,1736326244107,-854.74,9.998e-05,2]
[348113141,1736326244118,-500.0,9.998e-05,2]
[348113142,1736326244127,-500.0,9.998e-05,2]
[348113143,1736326244136,-500.0,9.998e-05,2]
[348113144,1736326244146,-500.0,9.998e-05,2]
[348113145,1736326244155,-500.0,9.998e-05,2]
[348113146,1736326244164,-500.0,9.998e-05,2]
[348113147,1736326244173,-512.34,9.998e-05,2]
[348113148,1736326244182,-500.0,9.998e-05,2]
[348113149,1736326244192,-2742.72,9.998e-05,2]
[348113150,1736326244201,-500.0,9.998e-05,2]
[348113151,1736326244210,-500.0,9.998e-05,2]
[348113152,1736326244220,-500.0,9.998e-05,2]
[348113153,1736326244229,-500.0,9.998e-05,2]
[348113154,1736326244238,-795.14,9.998e-05,2]
[348113155,1736326244247,-500.0,9.998e-05,2]
[348113156,1736326244256,-500.0,9.998e-05,2]
[348113157,1736326244265,-592.38,9.998e-05,2]
[348113158,1736326244275,-500.0,9.998e-05,2]
[348113159,1736326244284,-2071.63,9.998e-05,2]
[348113160,1736326244293,-500.0,9.998e-05,2]
[348113161,1736326244303,-500.0,9.998e-05,2]
[348113162,1736326244311,-556.68,9.998e-05,2]
[348113163,1736326244320,-500.0,9.998e-05,2]
[348113164,1736326244330,-897.02,9.998e-05,2]
[348113165,1736326244339,-500.0,9.998e-05,2]
[348113166,1736326244348,-2523.41,9.998e-05,2]
[348113167,1736326244357,-500.0,9.998e-05,2]
[348113168,1736326244366,-2208.12,9.998e-05,2]
[348113169,1736326244375,-12434.6,9.998e-05,2]
[348113170,1736326244385,-500.0,9.998e-05,2]
[348113171,1736326244394,-523.26,9.998e-05,2]
[348113172,1736326244403,-500.0,9.998e-05,2]
[348113173,1736326244412,-500.0,9.998e-05,2]
[348113174,1736326244421,-500.0,9.998e-05,2]
[348113175,1736326244430,-500.0,9.998e-05,2]
[348113176,1736326244439,-500.0,9.998e-05,2]
[348113177,1736326244448,-580.68,9.998e-05,2]
[348113178,1736326244457,-500.0,9.998e-05,2]
[348113179,1736326244466,-500.0,9.998e-05,2]
[348113180,1736326244475,-500.0,9.998e-05,2]
[348113181,1736326244484,-500.0,9.998e-05,2]
[348113182,1736326244493,-500.0,9.998e-05,2]
[348113183,1736326244503,-500.0,9.998e-05,2]
[348113184,1736326244511,-500.0,9.998e-05,2]
[348113185,1736326244520,-1000.0,9.998e-05,2]
[348113186,1736326244529,-1000.0,9.998e-05,2]
[348113187,1736326244539,-500.0,9.998e-05,2]
[348113188,1736326244548,-1653.5,9.998e-05,2]
[348113189,1736326244557,-500.0,9.998e-05,2]
[348113190,1736326244566,-500.0,9.998e-05,2]
[348113191,1736326244576,-500.0,9.998e-05,2]
[348113192,1736326244585,-500.0,9.998e-05,2]
[348113193,1736326244594,-1165.9,9.998e-05,2]
[348113194,1736326244603,-500.0,9.998e-05,2]
[348113195,1736326244613,-500.0,9.998e-05,2]
[348113196,1736326244622,-500.0,9.998e-05,2]
[348113197,1736326244631,-500.0,9.998e-05,2]
[348113198,1736326244640,-500.0,9.998e-05,2]
[348113199,1736326244649,-500.0,9.998e-05,2]
[348113200,1736326244658,-500.0,9.998e-05,2]
[348113201,1736326244667,-500.0,9.998e-05,2]
[348113202,1736326244675,-500.0,9.998e-05,2]
[348113203,1736326244684,-500.0,9.998e-05,2]
[348113204,1736326244697,-2353.3,9.998e-05,2]
[348113205,1736326244706,-500.0,9.998e-05,2]
[348113206,1736326244715,-500.0,9.998e-05,2]
[348113207,1736326244724,-500.0,9.998e-05,2]
[348113208,1736326244733,-714.02,9.998e-05,2]
[348113209,1736326244742,-2288.4,9.998e-05,2]
[348113210,1736326244751,-500.0,9.998e-05,2]
[348113211,1736326244760,-1387.75,9.998e-05,2]
[348113212,1736326244769,-500.0,9.998e-05,2]
[348113213,1736326244778,-500.0,9.998e-05,2]
[348113214,1736326244788,-500.0,9.998e-05,2]
[348113215,1736326244798,-500.0,9.998e-05,2]
[348113216,1736326244807,-500.0,9.998e-05,2]
[348113217,1736326244818,-1298.84,9.999e-05,2]
[348113218,1736326244828,-699.71,9.999e-05,2]
[348113219,1736326244838,-517.96,9.999e-05,2]
[348113220,1736326244847,-500.0,9.999e-05,2]
[348113221,1736326244856,-12434.6,9.999e-05,2]
[348113222,1736326244866,-12434.6,9.999e-05,2]
[348113223,1736326244876,-12434.6,9.999e-05,2]
[348113224,1736326244887,-12434.6,9.999e-05,2]
[348113225,1736326244897,-12434.6,9.999e-05,2]
[348113226,1736326245090,-500.0,9.999e-05,2]
[348113227,1736326245103,-1795.09,9.999e-05,2]
[348113228,1736326245113,-917.41,9.999e-05,2]
[348113229,1736326245123,-500.0,9.999e-05,2]
[348113230,1736326245132,-5468.96708274,0.0001,4]
[348113231,1736326245141,-184.03,0.0001,2]
[348113232,1736326245151,-209.57202962,0.0001,2]
[348113233,1736326245160,-209.57202962,0.00010033,2]
[348113234,1736326245169,-1028.0,0.00010066,2]
[348113235,1736326245178,-164.29,0.00010137,2]
[348113236,1736326245187,-209.57202962,0.00010167,2]
[348113237,1736326245197,-961.0928,0.00010172,2]
[348113238,1736326245206,-153.6018,0.00010185,2]
[348113239,1736326245216,-1000.0,0.00010243,2]
[348113240,1736326245225,-191.00835411,0.0001026,2]
[348113241,1736326245234,-500.56870927,0.0001027,2]
[348113242,1736326245243,-500.0,0.0001027,2]
[348113243,1736326245252,-500.0,0.0001027,2]
[348113244,1736326245262,-500.0,0.0001027,2]
[348113245,1736326245273,-500.0,0.0001027,2]
[348113246,1736326245283,-500.0,0.0001027,2]
[348113247,1736326245294,-500.0,0.0001027,2]
[348113248,1736326245303,-500.0,0.0001027,2]
[348113250,1736326245313,-500.0,0.0001027,2]
[348113251,1736326245322,-500.0,0.0001027,2]
[348113252,1736326245332,-500.0,0.0001027,2]
[348113253,1736326245341,-500.0,0.0001027,2]
[348113254,1736326245351,-500.0,0.0001027,2]
[348113255,1736326245362,-500.0,0.0001027,2]
[348113257,1736326245372,-500.0,0.0001027,2]
[348113258,1736326245382,-500.0,0.0001027,2]
[348113259,1736326245391,-500.0,0.0001027,2]
[348113260,1736326245400,-500.0,0.0001027,2]